[Event "GER-ch Women 2020"]
[Site "Magdeburg"]
[Date "2020.08.22"]
[Round "9.9"]
[White "Zimmer, Elke"]
[Black "Von Herman, Brigitte"]
[Result "0-1"]
[ECO "C90"]
[WhiteElo "1952"]
[BlackElo "2085"]
[Annotator "RC"]
[PlyCount "100"]
[EventDate "2020.08.16"]
[EventType "swiss"]
[EventCountry "GER"]
[SourceTitle "playchess.com"]
[Source "ChessBase"]
[SourceQuality "1"]
[TimeControl "40/5400+30:1800+30"]

1. e4 {[%emt 0:00:00]} e5 {[%emt 0:00:00]} 2. Nf3 {[%emt 0:00:00]} Nc6 {[%emt 0:00:00]} 3. Bb5 {[%emt 0:00:00]} a6 {[%emt 0:00:00]} 4. Ba4 {[%emt 0:03:18]} Nf6 {[%emt 0:00:00]} 5. O-O {[%emt 0:00:05]} Be7 {[%emt 0:00:19]} 6. Re1 {[%emt 0:00:25]} b5 {[%emt 0:00:47]} 7. Bb3 {[%emt 0:00:05]} d6 {[%emt 0:01:00]} 8. c3 {[%emt 0:00:29]} O-O {[%emt 0:00:08]} 9. a4 {[%emt 0:01:26]} Rb8 {[%emt 0:02:42]} 10. Na3 {[%emt 0:04:42]} Na5 {[%emt 0:02:54]} 11. Bc2 {[%emt 0:00:19]} c5 {[%emt 0:01:00]} 12. axb5 {[%emt 0:02:06]} axb5 {[%emt 0:00:09]} 13. b3 {[%emt 0:00:04]} Re8 {[%emt 0:15:50]} 14. Qe2 {[%emt 0:08:09]} Qb6 {[%emt 0:12:39]} 15. d3 {[%emt 0:13:01]} h6 {[%emt 0:02:17]} 16. h3 {[%emt 0:00:06]} Bf8 {[%emt 0:01:54]} 17. c4 {[%emt 0:01:59]} b4 {[%emt 0:06:14]} 18. Nb1 {[%emt 0:00:59]} Nc6 {[%emt 0:00:32]} 19. Be3 {[%emt 0:00:47]} Bd7 {[%emt 0:05:02]} 20. Nbd2 {[%emt 0:03:29]} Ra8 {[%emt 0:00:26]} 21. Nf1 {[%emt 0:00:34]} Ra3 {[%emt 0:02:39]} 22. Rab1 {[%emt 0:00:07]} Ra2 {[%emt 0:01:52]} 23. Ra1 {[%emt 0:00:59]} Ra3 {[%emt 0:00:05]} 24. Rab1 {[%emt 0:00:06]} Rea8 {[%emt 0:00:16]} 25. Rb2 {[%emt 0:00:22]} Qd8 {[%emt 0:01:47]} 26. g4 {[%emt 0:02:21]} Nh7 {[%emt 0:05:16]} 27. Ng3 {[%emt 0:02:41]} Be7 {[%emt 0:02:47]} 28. Kg2 {[%emt 0:04:36]} Ng5 {[%emt 0:01:37]} 29. Nh2 {[%emt 0:00:37]} Bf6 {[%emt 0:05:16]} 30. Nf5 {[%emt 0:07:22]} Qf8 {[%emt 0:02:06]} 31. Nf3 {[%emt 0:07:50]} Nxf3 {[%emt 0:06:07]} 32. Qxf3 {[%emt 0:00:31]} Bg5 {[%emt 0:07:09]} 33. h4 {[%emt 0:03:38]} Bxe3 {[%emt 0:01:52]} 34. fxe3 {[%emt 0:00:10]} Ra2 {[%emt 0:01:23]} 35. Reb1 {[%emt 0:00:27]} g6 {[%emt 0:01:39]} 36. Ng3 {[%emt 0:01:45]} Qe7 {[%emt 0:05:10]} 37. h5 {[%emt 0:02:38]} Qg5 {[%emt 0:01:36]} 38. Bd1 {[%emt 0:00:59]} Be6 {[%emt 0:02:05]} 39. Qe2 {[%emt 0:01:56]} Rxb2 {[%emt 0:01:48]} 40. Rxb2 Kg7 {[%emt 0:00:35]} 41. Qf3 {[%emt 0:31:49]} Ne7 {[%emt 0:30:55]} 42. Rf2 {[%emt 0:00:37]} Ng8 {[%emt 0:00:24]} 43. hxg6 {[%emt 0:09:24]} fxg6 {[%emt 0:00:31]} 44. d4 {[%emt 0:14:17]} Qe7 {[%emt 0:00:00]} 45. Nf1 {[%emt 0:00:00]} Rf8 {[%emt 0:00:00]} 46. Qg3 {[%emt 0:00:00]} Rxf2+ {[%emt 0:00:00]} 47. Kxf2 {[%emt 0:00:00]} exd4 {[%emt 0:00:00]} 48. exd4 {[%emt 0:00:00]} Qf6+ {[%emt 0:00:00]} 49. Qf3 {[%emt 0:00:00]} Qxd4+ {[%emt 0:00:00]} 50. Ne3 {[%emt 0:00:00]} Nf6 {[%emt 0:00:00]} 0-1

[Event "GER-ch Women 2020"]
[Site "Magdeburg"]
[Date "2020.08.22"]
[Round "9.10"]
[White "Stowicek, Yara Mathilda"]
[Black "Roos, Karin"]
[Result "1/2-1/2"]
[ECO "B22"]
[WhiteElo "1674"]
[BlackElo "1772"]
[Annotator "NA RC"]
[PlyCount "53"]
[EventDate "2020.08.16"]
[EventType "swiss"]
[EventCountry "GER"]
[SourceTitle "playchess.com"]
[Source "ChessBase"]
[SourceQuality "1"]
[TimeControl "40/5400+30:1800+30"]

1. e4 c5 {[%emt 0:00:00]} 2. c3 {[%emt 0:00:00]} d6 {[%emt 0:01:59]} 3. d4 {[%emt 0:02:27]} cxd4 {[%emt 0:00:30]} 4. cxd4 {[%emt 0:00:10]} Nf6 {[%emt 0:00:08]} 5. Nc3 {[%emt 0:00:27]} g6 {[%emt 0:02:02]} 6. Be3 {[%emt 0:00:31]} Bg7 {[%emt 0:00:16]} 7. h3 {[%emt 0:01:53]} a6 {[%emt 0:00:28]} 8. Bd3 {[%emt 0:01:52]} Nc6 {[%emt 0:00:31]} 9. f4 {[%emt 0:03:54]} e5 {[%emt 0:00:41]} 10. Nf3 {[%emt 0:02:51]} exd4 {[%emt 0:03:17]} 11. Nxd4 {[%emt 0:02:02]} O-O {[%emt 0:00:13]} 12. O-O {[%emt 0:00:43]} Nb4 {[%emt 0:15:20]} 13. Bb1 {[%emt 0:00:53]} Re8 {[%emt 0:03:48]} 14. Qf3 {[%emt 0:02:00]} Nc6 {[%emt 0:08:19]} 15. a3 {[%emt 0:02:27]} Nd7 {[%emt 0:01:15]} 16. Nde2 {[%emt 0:06:50]} Nc5 {[%emt 0:01:23]} 17. Bc2 {[%emt 0:01:38]} Be6 {[%emt 0:05:49]} 18. Rad1 {[%emt 0:01:35]} Qe7 {[%emt 0:00:04]} 19. b4 {[%emt 0:13:02]} Nd7 {[%emt 0:08:27]} 20. Rd2 {[%emt 0:04:49]} Rac8 {[%emt 0:03:00]} 21. Bd4 {[%emt 0:03:23]} Nxd4 {[%emt 0:00:18]} 22. Nxd4 {[%emt 0:00:15]} Nb6 {[%emt 0:05:41]} 23. Nce2 {[%emt 0:05:47]} Nc4 {[%emt 0:02:24]} 24. Rd3 {[%emt 0:04:20]} Nb2 {[%emt 0:01:21]} 25. Rd2 {[%emt 0:02:53]} Bc4 {[%emt 0:02:07]} 26. Rf2 {[%emt 0:02:57]} Qc7 {[%emt 0:02:45]} 27. Nc1 {[%emt 0:12:34]} 1/2-1/2